bitfinex/quotes_BTCUSD_20241025
["timestamp","ask_amount","ask_price","bid_price","bid_amount"]
[1729883607170,0.23373355,66911.0,66905.0,0.149465]
[1729883607389,0.23373355,66911.0,66910.0,0.149454]
[1729883607661,0.06605307,66911.0,66909.0,0.000821]
[1729883607910,0.08807077,66913.0,66912.0,0.14945]
[1729883607911,0.04406846,66913.0,66912.0,0.14945]
[1729883608141,0.06605307,66915.0,66909.0,0.00380982]
[1729883608142,0.04406846,66915.0,66914.0,0.149445]
[1729883608629,0.06605307,66916.0,66910.0,0.298905]
[1729883608849,0.04408111,66914.0,66913.0,0.149445]
[1729883609107,0.04408111,66914.0,66910.0,0.298908]
[1729883609328,0.04408111,66915.0,66909.0,0.000821]
[1729883609545,0.04408111,66914.0,66913.0,0.149447]
[1729883609995,0.04408111,66915.0,66913.0,0.149447]
[1729883610241,0.04408111,66915.0,66909.0,0.000821]
[1729883610242,0.23373355,66914.0,66909.0,0.000821]
[1729883610490,0.27781466,66914.0,66909.0,0.000821]
[1729883610701,0.005,66910.0,66909.0,0.000821]
[1729883612044,0.04408111,66911.0,66909.0,0.000821]
[1729883612307,0.04408111,66911.0,66909.0,0.150277]
[1729883612518,0.27781466,66914.0,66909.0,0.000821]
[1729883612741,0.27781466,66914.0,66913.0,0.149447]
[1729883614374,0.23373355,66914.0,66909.0,0.000821]
[1729883614629,0.04393516,66913.0,66909.0,0.000821]
[1729883614865,0.04393516,66913.0,66901.0,0.149472]
[1729883614866,0.149459,66908.0,66901.0,0.149472]
[1729883615104,0.0928617,66910.0,66898.0,0.298958]
[1729883615105,0.04392992,66906.0,66902.0,0.149471]
[1729883615356,0.23373355,66901.0,66900.0,0.149476]
[1729883616010,0.23373355,66901.0,66892.0,0.01]
[1729883616011,0.23373355,66901.0,66884.0,0.1825]
[1729883616231,0.23373355,66892.0,66891.0,0.448487]
[1729883616736,0.23373355,66892.0,66887.0,0.29901]
[1729883616983,0.23373355,66892.0,66891.0,0.149496]
[1729883617210,0.23373355,66892.0,66881.0,0.299035]
[1729883617211,0.005,66890.0,66881.0,0.299035]
[1729883617456,0.19842729,66890.0,66881.0,0.299036]
[1729883617690,0.44855093,66890.0,66881.0,0.149517]
[1729883617938,0.44855093,66890.0,66871.0,0.299079]
[1729883617939,0.66169844,66890.0,66871.0,0.299079]
[1729883618164,0.149525,66879.0,66873.0,0.149536]
[1729883618418,0.23373355,66874.0,66873.0,0.149536]
[1729883620030,0.23373355,66879.0,66871.0,0.299079]
[1729883620260,0.23373355,66879.0,66878.0,0.149524]
[1729883620500,0.005,66878.0,66871.0,0.299079]
[1729883620806,0.005,66878.0,66876.0,0.149529]
[1729883621241,0.005,66878.0,66873.0,0.299074]
[1729883621465,0.23373355,66875.0,66874.0,0.149534]
[1729883622593,0.23373355,66875.0,66865.0,0.299932]
[1729883622594,0.23373355,66875.0,66865.0,0.000823]
[1729883622811,0.23373355,66875.0,66874.0,0.149534]
[1729883623027,0.23373355,66875.0,66865.0,0.000823]
[1729883623028,0.23373355,66875.0,66871.0,0.299083]
[1729883623519,0.005,66876.0,66871.0,0.299083]
[1729883623520,0.23873355,66881.0,66873.0,0.299074]
[1729883623736,0.2244501,66880.0,66874.0,0.00299035]
[1729883623974,0.04384736,66884.0,66874.0,0.00299035]
[1729883624182,0.04384736,66884.0,66868.0,0.01]
[1729883624183,0.2244501,66879.0,66878.0,0.149526]
[1729883624400,0.23373355,66879.0,66878.0,0.149526]
[1729883625301,0.23373355,66885.0,66876.0,0.00299027]
[1729883625538,0.23373355,66885.0,66884.0,0.149512]
[1729883625774,0.0707019,66891.0,66877.0,0.299056]
[1729883625775,0.23873355,66891.0,66889.0,0.149501]
[1729883626002,0.23873355,66891.0,66888.0,0.149502]
[1729883626212,0.23373355,66891.0,66890.0,0.149499]
[1729883626428,0.2335537,66891.0,66890.0,0.149499]
[1729883626640,0.2385537,66891.0,66888.0,0.149502]
[1729883626847,0.2385537,66891.0,66886.0,0.299014]
[1729883627076,0.2385537,66891.0,66884.0,0.00298989]
[1729883628157,0.2335537,66891.0,66884.0,0.00298989]
[1729883628387,0.2335537,66891.0,66886.0,0.149506]
[1729883629454,0.2335537,66891.0,66885.0,0.149508]
[1729883629681,0.2335537,66891.0,66882.0,0.299034]
[1729883629917,0.2335537,66891.0,66884.0,0.14951]
[1729883630152,0.2335537,66891.0,66885.0,0.149509]
[1729883631331,0.2335537,66891.0,66877.0,0.23450381]
[1729883631332,0.2244501,66888.0,66884.0,0.000821]
[1729883631545,0.14951,66885.0,66884.0,0.000821]
[1729883634607,0.15451,66885.0,66884.0,0.000821]
[1729883634879,0.19831975,66885.0,66884.0,1.493e-05]
[1729883635082,0.15451,66885.0,66884.0,1.493e-05]
[1729883635329,0.149548,66869.0,66865.0,0.000823]
[1729883635528,0.38328555,66866.0,66865.0,0.000823]
[1729883635762,0.38828555,66866.0,66865.0,0.000823]
[1729883637993,0.23873355,66866.0,66865.0,0.000823]
[1729883638222,0.38828555,66866.0,66865.0,0.000823]
[1729883638927,0.299088,66870.0,66865.0,0.000823]
[1729883639146,0.448633,66870.0,66865.0,0.000823]
[1729883639393,0.23873355,66871.0,66865.0,0.000823]
[1729883639615,0.149544,66870.0,66865.0,0.000823]
[1729883639857,0.149546,66869.0,66865.0,0.000823]
[1729883640090,0.23373355,66871.0,66865.0,0.000823]
[1729883640309,0.2244501,66870.0,66865.0,0.000823]
[1729883640537,0.149544,66870.0,66865.0,0.000823]
[1729883640783,0.23373355,66871.0,66866.0,0.15254075]
[1729883641019,0.2244501,66870.0,66865.0,0.000823]
[1729883641239,0.23373355,66866.0,66865.0,0.000823]
[1729883641703,0.38328555,66866.0,66865.0,0.000823]
[1729883642351,0.154552,66866.0,66865.0,0.000823]
[1729883642599,0.46444734,66866.0,66865.0,0.000823]
[1729883643044,0.30949967,66866.0,66865.0,0.000823]
[1729883643508,0.46444734,66866.0,66865.0,0.000823]
[1729883644248,0.61495115,66866.0,66865.0,2.665e-05]
[1729883644497,0.58422359,66866.0,66865.0,2.665e-05]
[1729883644717,0.60813809,66866.0,66865.0,2.665e-05]
[1729883644940,0.60813809,66866.0,66854.0,0.00083265]
[1729883644941,0.38991579,66855.0,66854.0,0.00083265]
[1729883645641,0.23533879,66855.0,66854.0,0.00083265]
[1729883645868,0.23533879,66855.0,66854.0,0.15041165]
[1729883646314,0.23533879,66860.0,66855.0,0.149577]
[1729883646569,0.38490579,66860.0,66854.0,0.00382392]
[1729883646801,0.23533879,66860.0,66854.0,0.00382392]
[1729883647010,0.149568,66859.0,66854.0,0.00382392]
[1729883647235,0.23533879,66860.0,66854.0,0.00382392]
[1729883647694,0.23533879,66860.0,66854.0,0.30298192]
[1729883647878,0.23533879,66860.0,66857.0,0.149572]
[1729883648149,0.23533879,66860.0,66857.0,0.299145]
[1729883648365,0.38489179,66866.0,66860.0,0.149565]
[1729883648591,0.2244501,66870.0,66865.0,0.149553]
[1729883648805,0.2244501,66870.0,66862.0,0.29912]
[1729883649044,0.2244501,66870.0,66867.0,0.14955]
[1729883649260,0.2244501,66870.0,66864.0,0.299114]
[1729883649476,0.2244501,66870.0,66864.0,0.1525478]
[1729883649477,0.149547,66869.0,66864.0,0.1525478]
[1729883649688,0.005,66875.0,66864.0,0.0029908]
[1729883649908,0.23533879,66877.0,66864.0,0.0029908]
[1729883649909,0.2244501,66871.0,66864.0,0.15349461]
[1729883650137,0.53439679,66877.0,66866.0,0.299105]
[1729883650420,0.53439679,66877.0,66867.0,0.3020915]
[1729883650421,0.23533879,66877.0,66867.0,0.3020915]
[1729883650646,0.38486679,66877.0,66872.0,0.149538]
[1729883650872,0.23533879,66877.0,66874.0,0.149532]
[1729883651089,0.23533879,66877.0,66876.0,0.14953]
[1729883651311,0.149515,66883.0,66868.0,0.0029902]
[1729883651540,0.2244501,66880.0,66878.0,0.149525]
[1729883652022,0.23533879,66884.0,66876.0,0.299058]
[1729883652234,0.23533879,66884.0,66880.0,0.149521]
[1729883652445,0.38485179,66884.0,66874.0,0.299068]
[1729883652653,0.149515,66883.0,66878.0,0.149523]
[1729883653085,0.149515,66883.0,66878.0,0.15251322]
[1729883653307,0.149515,66883.0,66878.0,0.00299022]
[1729883653546,0.2244501,66888.0,66878.0,0.00299022]
[1729883653779,0.23533879,66884.0,66880.0,0.299039]
[1729883653991,0.2244501,66888.0,66878.0,0.22930381]
[1729883653992,0.23533879,66879.0,66878.0,0.22930381]
[1729883654491,0.23533879,66879.0,66878.0,0.37882981]
[1729883654708,0.23533879,66879.0,66873.0,0.005]
[1729883654934,0.23533879,66874.0,66873.0,0.30503881]
[1729883657641,0.23533879,66874.0,66873.0,0.30003881]
[1729883657850,0.23533879,66874.0,66873.0,0.30503881]
[1729883658128,0.001644,66884.0,66873.0,0.16349418]
[1729883658368,0.2244501,66880.0,66879.0,0.149523]
[1729883658586,0.23533879,66882.0,66880.0,0.14952]
[1729883659041,0.23533879,66882.0,66874.0,0.15050381]
[1729883659042,0.2244501,66881.0,66874.0,0.15050381]
[1729883659268,0.23533879,66875.0,66874.0,0.59910681]
[1729883659738,0.23533879,66880.0,66879.0,0.149523]
[1729883661154,0.23533879,66880.0,66873.0,0.304073]
[1729883661384,0.30067,66884.0,66875.0,0.149531]
[1729883661385,0.14952,66881.0,66875.0,0.149531]
[1729883661618,0.2244501,66880.0,66874.0,0.299069]
[1729883661838,0.149523,66880.0,66874.0,0.149534]
[1729883662034,0.30067,66884.0,66874.0,0.149534]
[1729883662035,0.149518,66882.0,66876.0,0.14953]
[1729883662294,0.149519,66881.0,66876.0,0.14953]
[1729883662520,0.23533879,66877.0,66876.0,0.14953]
[1729883663243,0.001644,66884.0,66876.0,0.14953]
[1729883663244,0.001644,66884.0,66883.0,0.149514]
[1729883663487,0.001644,66884.0,66883.0,0.30300734]
[1729883663725,0.001644,66884.0,66883.0,0.39091781]
[1729883666515,0.15637673,66884.0,66883.0,0.38091781]
[1729883666721,0.15637673,66884.0,66883.0,0.39091781]
[1729883668514,0.31110946,66884.0,66870.0,0.1712]
[1729883668740,0.31110946,66884.0,66872.0,0.149539]
[1729883668741,0.15473273,66873.0,66872.0,0.149539]
[1729883668962,0.15473273,66873.0,66868.0,0.0789]
[1729883669183,0.29906,66876.0,66870.0,0.149543]
[1729883669400,0.15473273,66873.0,66871.0,0.15050381]
[1729883669662,0.30427073,66873.0,66871.0,0.15050381]
[1729883669882,0.15473273,66872.0,66871.0,0.15050381]
[1729883670099,0.15473273,66872.0,66865.0,0.000822]
[1729883670336,0.29907,66874.0,66865.0,0.15132581]
[1729883670337,0.15473273,66866.0,66865.0,0.15132581]
[1729883670552,0.23519553,66870.0,66865.0,0.15132581]
[1729883670772,0.149549,66868.0,66865.0,0.15132581]
[1729883671008,0.149552,66866.0,66865.0,0.000822]
[1729883672146,0.19848762,66866.0,66865.0,0.000822]
[1729883672367,0.22045544,66866.0,66865.0,3.143e-05]
[1729883672607,0.22045544,66866.0,66854.0,0.00083265]
[1729883672608,0.154577,66855.0,66854.0,0.00083265]
[1729883672854,0.38977253,66855.0,66854.0,0.00083265]
[1729883673085,0.54414226,66855.0,66854.0,0.00083265]
[1729883673318,0.54414226,66855.0,66854.0,4.12e-05]
[1729883674052,0.65393033,66855.0,66854.0,4.12e-05]
[1729883674284,0.54414226,66855.0,66854.0,4.12e-05]
[1729883674772,0.149579,66854.0,66853.0,0.000846]
[1729883674992,0.45445254,66854.0,66853.0,0.000846]
[1729883675683,0.56920023,66854.0,66853.0,0.000846]
[1729883675915,0.77774807,66854.0,66853.0,0.000846]
[1729883676378,0.77774807,66854.0,66842.0,0.000846]
[1729883676379,0.149604,66843.0,66842.0,0.000846]
[1729883676641,0.58416196,66843.0,66842.0,0.000846]
[1729883676865,0.60611904,66843.0,66842.0,0.000846]
[1729883677088,0.22038924,66843.0,66842.0,0.000846]
[1729883677363,0.38479953,66843.0,66842.0,0.000846]
[1729883677575,0.36498324,66846.0,66842.0,0.000846]
[1729883677576,0.23519553,66848.0,66842.0,0.0373852]
[1729883677788,0.23519553,66843.0,66842.0,0.000846]
[1729883678000,0.23519553,66843.0,66842.0,0.150452]
[1729883678224,0.23519553,66843.0,66842.0,0.000846]
[1729883678935,0.38479953,66843.0,66842.0,0.000846]
[1729883679825,0.23519553,66848.0,66842.0,0.00383794]
[1729883680064,0.38479953,66843.0,66842.0,0.000846]
[1729883680501,0.38979953,66843.0,66842.0,0.000846]
[1729883682346,0.38979953,66843.0,66842.0,5.376e-05]
[1729883683214,0.149604,66843.0,66842.0,5.376e-05]
[1729883683428,0.25,66848.0,66842.0,5.376e-05]
[1729883683429,0.23519553,66848.0,66842.0,5.376e-05]
[1729883683671,0.304181,66850.0,66842.0,5.376e-05]
[1729883683857,0.149596,66847.0,66842.0,5.376e-05]
[1729883684100,3.6,66851.0,66842.0,5.376e-05]
[1729883684101,3.6,66851.0,66843.0,0.15050381]
[1729883684316,0.2244501,66850.0,66843.0,0.15050381]
[1729883684564,0.1496,66845.0,66842.0,5.376e-05]
[1729883684778,0.149594,66848.0,66843.0,0.149603]
[1729883684995,0.149591,66849.0,66844.0,0.149601]
[1729883685473,0.149598,66846.0,66842.0,5.376e-05]
[1729883685704,3.6,66851.0,66842.0,5.376e-05]
[1729883685942,0.149591,66849.0,66843.0,0.149603]
[1729883686167,3.6,66851.0,66846.0,0.149595]
[1729883686377,3.6,66851.0,66847.0,0.15050381]
[1729883686625,3.6,66851.0,66850.0,0.149588]
[1729883686846,3.6,66851.0,66850.0,0.15050381]
[1729883687096,3.6,66851.0,66850.0,0.30009181]
[1729883689139,3.6,66851.0,66850.0,0.15050381]
[1729883689349,3.6,66851.0,66850.0,0.30009181]
[1729883691104,3.6,66851.0,66850.0,0.30091381]
[1729883692452,3.6,66851.0,66850.0,0.15132581]
[1729883692660,3.6,66851.0,66850.0,0.30091381]
[1729883696705,3.6,66851.0,66850.0,0.15132581]
[1729883697119,3.6,66851.0,66850.0,0.000822]
[1729883697120,3.749586,66851.0,66850.0,0.000822]
[1729883697749,3.749586,66851.0,66850.0,3.913e-05]
[1729883698846,3.749586,66851.0,66839.0,0.000823]
[1729883698847,0.154604,66843.0,66839.0,0.000823]
[1729883699095,0.46438676,66843.0,66839.0,0.000823]
[1729883699327,0.54458676,66843.0,66839.0,0.000823]
[1729883699987,0.154611,66840.0,66839.0,5.078e-05]
[1729883700221,0.154611,66840.0,66833.0,0.000846]
[1729883700222,0.399624,66834.0,66833.0,0.000846]
[1729883700483,0.63516209,66834.0,66833.0,0.000846]
[1729883701844,0.64016209,66834.0,66833.0,0.000846]
[1729883702497,0.68570014,66834.0,66833.0,0.000846]
[1729883702986,0.404624,66834.0,66833.0,0.000846]
[1729883703225,0.149624,66834.0,66833.0,0.000846]
[1729883703657,0.38516209,66834.0,66833.0,0.000846]
[1729883703862,0.149624,66834.0,66833.0,0.000846]
[1729883704064,0.53476809,66839.0,66833.0,0.000846]
[1729883704065,0.299226,66839.0,66833.0,0.000846]
[1729883704291,0.005,66841.0,66835.0,0.14962]
[1729883704292,0.149609,66841.0,66835.0,0.14962]
[1729883704536,0.2244501,66842.0,66839.0,0.149612]
[1729883704755,0.2244501,66842.0,66836.0,0.15050381]
[1729883705000,0.149603,66844.0,66839.0,0.149612]
[1729883705215,0.149599,66846.0,66837.0,0.299235]
[1729883705440,0.299195,66846.0,66838.0,0.15050381]
[1729883705707,0.149613,66839.0,66838.0,0.15050381]
[1729883705935,0.149613,66839.0,66833.0,0.000846]
[1729883705936,0.149624,66834.0,66833.0,0.000846]
[1729883706163,0.38516209,66834.0,66833.0,0.000846]
[1729883706591,0.39016209,66834.0,66833.0,0.000846]
[1729883706824,0.38516209,66834.0,66833.0,0.000846]
[1729883707017,0.149624,66834.0,66833.0,0.000846]
[1729883707480,0.25,66846.0,66833.0,0.15134981]
[1729883707481,0.299208,66843.0,66833.0,0.15134981]
[1729883707718,0.2244501,66842.0,66838.0,0.149615]
[1729883707981,0.2244501,66842.0,66834.0,0.15050381]
[1729883707982,0.149613,66839.0,66834.0,0.30012781]
[1729883708212,0.149622,66835.0,66834.0,0.15050381]
[1729883708422,0.149617,66838.0,66834.0,0.15050381]
[1729883708642,0.23553809,66839.0,66834.0,0.15050381]
[1729883708856,0.29923,66838.0,66834.0,0.15050381]
[1729883709279,0.23553809,66839.0,66833.0,0.000846]
[1729883709280,0.149624,66834.0,66833.0,0.000846]
[1729883709710,0.39016209,66834.0,66833.0,0.000846]
[1729883710164,0.39016209,66834.0,66833.0,5.413e-05]
[1729883710376,0.43580466,66834.0,66833.0,5.413e-05]
[1729883710595,0.43580466,66834.0,66833.0,3.74e-06]
[1729883711237,0.19526657,66834.0,66833.0,3.74e-06]
[1729883711455,0.25,66842.0,66834.0,0.149623]
[1729883711675,0.25,66842.0,66835.0,0.15050381]
[1729883711676,0.149612,66840.0,66835.0,0.15050381]
[1729883711919,0.149606,66842.0,66836.0,0.299239]
[1729883712159,0.549213,66842.0,66835.0,0.15050381]
[1729883712374,0.549213,66842.0,66833.0,3.74e-06]
[1729883712377,0.149624,66834.0,66833.0,3.74e-06]
[1729883712591,0.24053809,66839.0,66833.0,3.74e-06]
[1729883712794,0.149618,66837.0,66833.0,0.15050755]
[1729883713502,0.149623,66835.0,66833.0,0.15050755]
[1729883714166,0.29923,66838.0,66833.0,0.15050755]
[1729883714167,0.86461219,66834.0,66833.0,3.74e-06]
[1729883714405,0.64016209,66834.0,66833.0,3.74e-06]
[1729883714626,1.02288264,66834.0,66833.0,3.74e-06]
[1729883714849,0.91349024,66834.0,66833.0,3.74e-06]
[1729883715471,1.04476112,66834.0,66833.0,3.74e-06]
[1729883715911,0.91349024,66834.0,66833.0,3.74e-06]
[1729883716560,1.04476112,66834.0,66833.0,3.74e-06]
[1729883716779,0.96846112,66834.0,66833.0,3.74e-06]
[1729883717002,0.83719024,66834.0,66833.0,3.74e-06]
[1729883717216,0.79159513,66834.0,66833.0,3.74e-06]
[1729883717438,0.83717837,66834.0,66833.0,3.74e-06]
[1729883717643,0.83717404,66834.0,66833.0,3.74e-06]
[1729883718090,0.79159513,66834.0,66833.0,3.74e-06]
[1729883719917,0.66602519,66834.0,66833.0,3.74e-06]
[1729883720152,0.90156328,66834.0,66833.0,3.74e-06]
[1729883720377,0.149631,66831.0,66830.0,0.000846]
[1729883720597,0.21561413,66831.0,66830.0,0.000846]
[1729883720819,0.06598313,66832.0,66830.0,0.15134981]
[1729883721057,0.04399186,66835.0,66833.0,0.299252]
[1729883721279,0.2244501,66842.0,66836.0,0.299239]
[1729883721492,0.04563786,66843.0,66838.0,0.299228]
[1729883721493,0.2244501,66841.0,66838.0,0.299228]
[1729883721702,0.2244501,66841.0,66840.0,0.149611]
[1729883721910,0.2244501,66841.0,66837.0,0.15050381]
[1729883722124,0.2244501,66841.0,66830.0,0.088346]
[1729883722125,0.25,66837.0,66830.0,0.088346]
[1729883722331,0.299239,66836.0,66831.0,0.15050381]
[1729883722548,0.25,66837.0,66831.0,0.15050381]
[1729883722794,0.149631,66831.0,66830.0,0.000846]
[1729883723003,0.154631,66831.0,66830.0,0.000846]
[1729883723508,0.39274629,66831.0,66830.0,0.000846]
[1729883723958,0.30477326,66831.0,66830.0,0.000846]
[1729883724163,0.52922336,66831.0,66830.0,0.000846]
[1729883724378,0.35036784,66831.0,66830.0,0.000846]
[1729883725075,0.35036784,66831.0,66818.0,0.000846]
[1729883725076,0.404658,66819.0,66818.0,0.000846]
[1729883725307,0.92819306,66819.0,66818.0,0.000846]
[1729883725581,1.07869687,66819.0,66818.0,0.000846]
[1729883726013,0.92903887,66819.0,66816.0,0.0135853]
[1729883726225,0.25,66800.0,66794.0,0.005]
[1729883726473,0.25,66793.0,66781.0,5.211e-05]
[1729883726687,0.25,66793.0,66788.0,0.12050381]
[1729883726688,0.23553809,66789.0,66788.0,0.12050381]
[1729883726897,0.23553809,66789.0,66782.0,0.0051685]
[1729883727169,0.23553809,66789.0,66787.0,0.15135081]
[1729883727402,0.23553809,66789.0,66787.0,0.000847]
[1729883727614,0.2244501,66788.0,66787.0,0.000847]
[1729883727842,0.14974,66782.0,66767.0,0.000847]
[1729883728086,0.48553809,66776.0,66767.0,0.000847]
[1729883728316,0.48553809,66776.0,66770.0,0.005]
[1729883728550,0.48553809,66776.0,66771.0,0.00299497]
[1729883729272,0.08678118,66780.0,66772.0,0.005]
[1729883729515,0.23553809,66776.0,66773.0,0.15050381]
[1729883729951,0.08678118,66780.0,66774.0,0.00299479]
[1729883730171,0.08678118,66780.0,66773.0,0.15050381]
[1729883730172,0.08678118,66780.0,66775.0,0.15349851]
[1729883730414,0.2244501,66779.0,66775.0,0.15349851]
[1729883730639,0.2244501,66779.0,66775.0,0.15050381]
[1729883731096,0.25,66776.0,66775.0,0.15050381]
[1729883731382,0.25,66776.0,66767.0,0.000847]
[1729883731598,0.08678118,66780.0,66768.0,0.15050381]
[1729883731599,0.25,66769.0,66768.0,0.15050381]
[1729883731820,0.23553809,66772.0,66768.0,0.15050381]
[1729883732267,0.25,66769.0,66768.0,0.15050381]
[1729883732732,0.25,66769.0,66767.0,0.000847]
[1729883732956,0.08179493,66775.0,66768.0,0.15050381]
[1729883733171,0.2244501,66771.0,66768.0,0.15050381]
[1729883733826,0.23553809,66772.0,66768.0,0.15050381]
[1729883734285,0.08179493,66775.0,66769.0,0.00799497]
[1729883734502,0.2244501,66771.0,66770.0,0.15050381]
[1729883734715,0.23553809,66774.0,66770.0,0.15050381]
[1729883734949,0.23553809,66774.0,66771.0,0.005]
[1729883735185,0.23553809,66774.0,66767.0,0.000847]
[1729883735186,0.23553809,66774.0,66772.0,0.15050381]
[1729883736312,0.25,66768.0,66767.0,0.000847]
[1729883736530,0.48553809,66768.0,66767.0,0.000847]
[1729883740051,0.23553809,66773.0,66767.0,0.15135081]
[1729883740312,0.70998819,66768.0,66767.0,0.000847]
[1729883740523,0.48553809,66768.0,66767.0,0.000847]
[1729883741419,0.49053809,66768.0,66767.0,0.000847]
[1729883741853,0.64031009,66768.0,66767.0,0.000847]
[1729883742295,0.64031009,66768.0,66762.0,9e-05]
[1729883742296,0.005,66764.0,66762.0,9e-05]
[1729883742538,0.002,66728.0,66688.0,0.299904]
[1729883742862,0.002,66727.0,66718.0,0.299768]
[1729883743036,0.002,66727.0,66694.0,0.299874]
[1729883743037,0.45998819,66719.0,66694.0,0.299874]
[1729883743284,0.25,66727.0,66695.0,0.00768823]
[1729883743535,0.0776,66741.0,66717.0,0.149886]
[1729883743536,0.2244501,66718.0,66717.0,0.149886]
[1729883744280,0.2244501,66730.0,66717.0,0.15350106]
[1729883744500,0.2244501,66730.0,66729.0,0.149859]
[1729883745202,0.2244501,66730.0,66697.0,0.1577]
[1729883745203,0.2244501,66738.0,66715.0,0.23553809]
[1729883745424,0.2244501,66738.0,66737.0,0.149841]
[1729883745628,0.2244501,66738.0,66737.0,0.15050381]
[1729883745836,0.2244501,66738.0,66737.0,0.30034481]
[1729883746052,0.25,66745.0,66737.0,0.30034481]
[1729883746278,0.2244501,66739.0,66738.0,0.15050381]
[1729883746493,0.25,66745.0,66738.0,0.15050381]
[1729883746494,0.25,66745.0,66740.0,0.149834]
[1729883746723,0.2244501,66754.0,66741.0,0.15350007]
[1729883746724,0.25,66752.0,66741.0,0.15350007]
[1729883746941,0.25,66751.0,66750.0,0.149812]
[1729883747153,0.2244501,66754.0,66749.0,0.149813]
[1729883747359,0.2244501,66754.0,66750.0,0.149811]
[1729883747571,0.2244501,66754.0,66743.0,0.15050381]
[1729883747813,0.07657073,66759.0,66755.0,0.299602]
[1729883748071,0.07657073,66759.0,66757.0,0.149796]
[1729883748291,0.07657073,66759.0,66758.0,0.15349935]
[1729883748983,0.07657073,66759.0,66758.0,0.15050381]
[1729883749434,0.07657073,66759.0,66758.0,0.30029781]
[1729883749885,0.07657073,66759.0,66758.0,0.30329331]
[1729883750315,0.07657073,66759.0,66758.0,0.15050381]
[1729883751484,0.22636273,66759.0,66758.0,0.15050381]
[1729883751687,0.002,66754.0,66732.0,0.149852]
[1729883751943,0.25,66748.0,66740.0,0.15050381]
[1729883752169,0.25,66741.0,66740.0,0.15050381]
[1729883752384,0.25,66741.0,66668.0,0.749976]
[1729883752385,0.25,66734.0,66719.0,0.0753]
[1729883752608,0.25,66734.0,66720.0,0.15050381]
[1729883753053,0.2264501,66732.0,66720.0,0.15050381]
[1729883753269,0.2264501,66732.0,66704.0,0.0120225]
[1729883753270,0.25,66716.0,66704.0,0.0120225]
[1729883753482,0.252,66716.0,66705.0,0.15050381]
[1729883753713,0.25,66716.0,66705.0,0.15050381]
[1729883753938,0.2244501,66714.0,66705.0,0.15050381]
[1729883754937,0.2244501,66707.0,66705.0,0.15050381]
[1729883755156,0.23553809,66706.0,66705.0,0.15050381]
[1729883755382,0.23553809,66706.0,66694.0,5.213e-05]
[1729883755383,0.255,66701.0,66694.0,5.213e-05]
[1729883755632,0.25,66687.0,66676.0,0.00522048]
[1729883755853,0.02346,66691.0,66677.0,0.15350264]
[1729883756083,0.02346,66691.0,66688.0,0.15050381]
[1729883756312,0.2244501,66690.0,66689.0,0.00299818]
[1729883756543,0.2244501,66690.0,66689.0,0.15294718]
[1729883756764,0.02346,66691.0,66690.0,0.149947]
[1729883757030,0.02346,66691.0,66690.0,0.30045081]
[1729883757252,0.02346,66691.0,66690.0,0.15050381]
[1729883758644,0.02346,66691.0,66690.0,0.30344887]
[1729883759310,0.02346,66691.0,66690.0,0.28344887]
[1729883759582,0.02346,66691.0,66690.0,0.13050381]
[1729883759811,0.02346,66691.0,66690.0,0.64283252]
[1729883760659,0.02346,66691.0,66690.0,0.13050381]
[1729883761992,0.4744501,66700.0,66690.0,0.13350196]
[1729883762288,0.2244501,66700.0,66697.0,0.15050381]
[1729883762517,0.2244501,66707.0,66698.0,0.149929]
[1729883762518,0.2244501,66699.0,66698.0,0.149929]
[1729883762742,0.2244501,66714.0,66698.0,0.00299785]
[1729883762972,0.2244501,66714.0,66701.0,0.149922]
[1729883762973,0.2244501,66702.0,66701.0,0.149922]
[1729883763194,0.2244501,66714.0,66708.0,0.149905]
[1729883763418,0.2244501,66714.0,66710.0,0.15050381]
[1729883763666,0.2244501,66714.0,66710.0,0.30040481]
[1729883763882,0.07663774,66721.0,66713.0,0.51288552]
[1729883764106,0.2244501,66711.0,66699.0,0.376252]
[1729883764323,0.2244501,66718.0,66699.0,0.376252]
[1729883764324,0.2244501,66718.0,66706.0,0.00543177]
[1729883764543,0.2244501,66718.0,66701.0,0.149922]
[1729883764544,0.2244501,66711.0,66699.0,0.0764]
[1729883765014,0.2244501,66711.0,66703.0,0.15050381]
[1729883765238,0.2244501,66704.0,66703.0,0.15050381]
[1729883765470,0.2244501,66711.0,66703.0,0.15050381]
[1729883765709,0.25,66713.0,66703.0,0.15050381]
[1729883765945,0.2244501,66712.0,66708.0,0.15050381]
[1729883766215,0.2244501,66712.0,66709.0,0.00299746]
[1729883766447,0.2244501,66712.0,66710.0,0.15050381]
[1729883766679,0.2244501,66725.0,66716.0,0.299774]
[1729883766895,0.2244501,66717.0,66716.0,0.149887]
[1729883767125,0.2244501,66725.0,66717.0,0.36238171]
[1729883767344,0.2244501,66725.0,66720.0,0.15050381]
[1729883768013,0.25,66724.0,66720.0,0.15050381]
[1729883768898,0.399871,66724.0,66720.0,0.15050381]
[1729883769111,0.25,66712.0,66691.0,0.0792]
[1729883769333,0.25,66712.0,66699.0,0.15050381]
[1729883769574,0.2244501,66709.0,66699.0,0.15050381]
[1729883770187,0.25,66704.0,66699.0,0.15050381]
[1729883771093,0.2244501,66702.0,66699.0,0.15050381]
[1729883771316,0.25,66693.0,66690.0,0.00601706]
[1729883771527,0.25,66693.0,66690.0,0.15132681]
[1729883771951,0.2244501,66691.0,66690.0,0.15132681]
[1729883772196,0.25,66693.0,66690.0,0.000823]
[1729883772406,0.25,66675.0,66674.0,0.000848]
[1729883772620,0.25,66682.0,66674.0,0.15672217]
[1729883772829,0.25,66682.0,66676.0,0.15050381]
[1729883773292,0.02347245,66695.0,66681.0,0.15050381]
[1729883773293,0.25,66689.0,66681.0,0.15050381]
[1729883773502,0.25,66689.0,66680.0,0.36238171]
[1729883773503,0.2244501,66688.0,66683.0,0.15050381]
[1729883774019,0.25,66689.0,66683.0,0.15050381]
[1729883774471,0.2244501,66695.0,66690.0,0.000823]
[1729883774702,0.2244501,66695.0,66691.0,0.15050381]
[1729883775631,0.002,66692.0,66691.0,0.15050381]
[1729883775845,0.002,66692.0,66690.0,0.000823]
[1729883775846,0.012,66691.0,66690.0,0.000823]
[1729883776099,0.01,66691.0,66690.0,0.000823]
[1729883776309,0.25,66696.0,66690.0,0.000823]
[1729883776310,0.25,66696.0,66690.0,0.15132681]
[1729883776537,0.2244501,66695.0,66691.0,0.15350231]
[1729883776755,0.2244501,66693.0,66691.0,0.15350231]